Cogmind - Beta 15 X1 @@@ ROGUE MODE // 2024.11.17 @ 17:27:38 Player: H3-RMN Result: Destroyed by D-53 Grenadier with Mini Grenade Launcher Performance ------------- Evolutions (0) 0 Regions Visited (2) 400 Robots Destroyed (13) 65 Value Destroyed (244) 244 Prototype IDs (2) 40 Alien Tech Used (0) 0 Bonus (0) 0 TOTAL SCORE: 749 Bonus ------- None Cogmind --------- Core Integrity 0/250 Matter 251/300 Energy 112/125 System Corruption 0% Temperature Cool (10) Movement Treading (240) Ox1 Location -10/Mines Parts ------- > --- POWER (1) -------- Light Ion Engine > --- PROPULSION (2) --- Light Treads > --- UTILITY (2) ------ Large Storage Unit Core Shielding > --- WEAPON (2) ------- Small Laser Light Assault Rifle > --- INVENTORY (15) --- Huge Storage Unit Large Battery (200) Large Battery (200) Large Matter Pod (115) Improved Terrain Scanner Seismic Detector Hacking Suite Light Assault Rifle Light Assault Rifle Light Assault Rifle Light Assault Rifle Light Assault Rifle Light Cannon Mining Laser Peak State ------------ > --- POWER ------------ Ion Engine > --- PROPULSION ------- Wheel Compact Wheel > --- UTILITY ---------- Small Storage Unit Improved Terrain Scanner > --- WEAPON ----------- Small Laser Assault Rifle > --- INVENTORY -------- Light Ion Engine Light Treads Light Treads Medium Laser [Rating: 9] Favorites ----------- Power Ion Engine Engine Ion Engine Propulsion Light Treads Treads Light Treads Wheel Wheel Utility Small Storage Unit Device Improved Terrain Scanner Storage Small Storage Unit Protection Core Shielding Weapon Small Laser Energy Gun Small Laser Ballistic Gun Assault Rifle Build | -11 -10 -10 ------- Run | Yrd Mat Min Slots Evolved . | . . . Power . | . . . Propulsion . | . . . Utility . | . . . Weapon . | . . . Parts Attached 17 | 10 6 1 Power 3 | 2 . 1 Engine 3 | 2 . 1 Core . | . . . Reactor . | . . . Propulsion 5 | 3 2 . Treads 2 | 1 1 . Leg . | . . . Wheel 3 | 2 1 . Hover . | . . . Flight . | . . . Utility 4 | 2 2 . Device 1 | 1 . . Storage 2 | 1 1 . Processor . | . . . Hackware . | . . . Protection 1 | . 1 . Artifact . | . . . Weapon 5 | 3 2 . Energy Gun 3 | 2 1 . Energy Cannon . | . . . Ballistic Gun 2 | 1 1 . Ballistic Cannon . | . . . Launcher . | . . . Special Weapon . | . . . Impact Weapon . | . . . Slashing Weapon . | . . . Piercing Weapon . | . . . Special Melee Weapon . | . . . Unidentified Prototypes . | . . . Parts Lost 8 | 4 2 2 Power 2 | 1 . 1 Propulsion 4 | 1 2 1 Utility . | . . . Weapon 2 | 2 . . Highest Loss Streak 4 | 4 1 2 To Critical Strikes . | . . . Average Backups 6 | 5 7 14 Power . | . . . Propulsion 2 | 2 . . Utility 1 | . 4 7 Weapon 2 | 1 2 7 Tool/Special . | . . . Unused Backups 12 | . . 12 Power . | . . . Propulsion . | . . . Utility 5 | . . 5 Weapon 7 | . . 7 Tool/Special . | . . . Average Slot Usage (%) 94 | . 94 100 Engine 13 | . 12 14 Treads 13 | . 13 14 Wheel 12 | . 12 14 Storage 14 | . 14 14 Protection 13 | . 12 14 Energy Gun 13 | . 13 14 Ballistic Gun 11 | . 11 14 Peak Build Rating 9 | 9 8 8 Average Rating 8 | 8 7 7 On Entrance 4 | . 6 8 Naked Turns . | . . . Heaviest Build 27 | 14 27 26 Greatest Support 26 | 26 20 16 Greatest Overweight (x) 2 | 1 2 1 Average Overweight (x) . | . 1 1 Largest Inventory Capacity 15 | 8 15 15 Average Capacity 9 | 7 14 15 Most Carried 15 | 6 15 15 Average Carried 6 | 5 7 14 Final Capacity 15 | 8 15 15 Final Carried 15 | 5 15 14 Class Distribution -------------------- 100% | Mutant Dominant Class ---------------- Mutant | -10/Materials Mutant | -10/Mines Resources | -11 -10 -10 ----------- Run | Yrd Mat Min Matter Collected 542 | 289 253 . Remotely . | . . . Salvage Created 323 | 22 301 . Parts 26 | 5 21 . Haulers Intercepted . | . . . Recyclers Shooed . | . . . Parts Field Recycled . | . . . Retrieved Matter . | . . . Parts Self-Destructed . | . . . Prevented . | . . . Kills | -11 -10 -10 ------- Run | Yrd Mat Min Combat Hostiles Destroyed 10 | 1 9 . Guns 10 | 1 9 . Classes Destroyed 6 | 2 4 . Tunneler 1 | 1 . . Recycler 1 | . 1 . Operator 1 | . 1 . Swarmer 6 | . 6 . Grunt 3 | . 3 . Demolisher 1 | 1 . . Best Kill Streak 3 | 1 3 . Combat Bots Only 3 | 1 3 . Max Kills in Single Turn 1 | 1 1 . Gunslinging . | . . . Exploded . | . . . Melee . | . . . Uniques/NPCs Destroyed . | . . . Combat | -11 -10 -10 -------- Run | Yrd Mat Min Hostile Shots Fired 62 | 13 44 5 Missed 13 | . 13 . Damage Taken 1010 | 514 271 225 Core 258 | 110 63 85 Absorbed by Shields . | . . . Redirected to Shielding 23 | . 11 12 Core Remaining (%) 56 | 56 . . Volleys Fired 58 | 8 47 3 Largest 2 | 2 2 2 Hottest 90 | 90 70 60 Shots Fired 90 | 14 70 6 Gun 90 | 14 70 6 Cannon . | . . . Launcher . | . . . Special . | . . . Kinetic 30 | 3 24 3 Thermal 60 | 11 46 3 Explosive . | . . . Electromagnetic . | . . . Robot Hit Streak 9 | 7 9 1 Robot Miss Streak 4 | 4 4 1 Penetration Max . | . . . Secondary Targets 1 | . 1 . Max Gunslinging Chain 1 | . 1 . Shots Hit Robots 55 | 9 43 3 Core Hits 23 | 5 18 . Critical Kills . | . . . Critical Parts Destroyed . | . . . Critical Strikes 4 | 2 1 1 Burn 3 | 2 1 . Destroy 1 | . . 1 Melee Attacks . | . . . Impact . | . . . Slashing . | . . . Piercing . | . . . Sneak Attacks . | . . . Combat Hostiles . | . . . Follow-up Attacks . | . . . Damage Inflicted 617 | 117 474 26 Guns 617 | 117 474 26 Cannons . | . . . Explosions . | . . . Melee . | . . . Ramming . | . . . Kinetic 145 | . 119 26 Thermal 472 | 117 355 . Explosive . | . . . Electromagnetic . | . . . Impact . | . . . Slashing . | . . . Piercing . | . . . Highest Corruption . | . . . Average Corruption . | . . . Corruption Purged . | . . . Corruption Blocked . | . . . Overload Shots . | . . . Overflow Damage . | . . . Projectiles . | . . . Explosions . | . . . Melee . | . . . Knockbacks . | . . . Impact . | . . . Kinetic . | . . . Secondary . | . . . Self-Inflicted Damage . | . . . Shots . | . . . Rammed . | . . . Targets Rammed . | . . . Kicked . | . . . Crushed . | . . . Highest Temperature 180 | 75 180 20 Average Temperature 49 | 40 51 13 Received Heat Transfer 12 | . 12 . Siege Activations . | . . . Martial Activations . | . . . Shielding Activations . | . . . Robots Disrupted . | . . . Combat Hostiles . | . . . Robots Corrupted . | . . . Combat Hostiles . | . . . Parts Fried . | . . . Impact Corruptions . | . . . Robots Melted . | . . . Combat Hostiles . | . . . Parts Melted 1 | . 1 . Heat Transferred 1521 | 458 1063 . Parts Sabotaged . | . . . Parts Stolen . | . . . Parts Stripped . | . . . Power Chain Reactions . | . . . Alert | -11 -10 -10 ------- Run | Yrd Mat Min Maximum Alert Level . | . . . Low Security (%) 100 | 100 100 100 Level 1 . | . . . Level 2 . | . . . Level 3 . | . . . Level 4 . | . . . Level 5 . | . . . High Security . | . . . Max Security . | . . . Peak Influence 75 | 19 75 . Initial 8 | . 8 . Average 3 | . 16 . Influence Increases 280 | 25 255 . Destroy 0b10 Robot/C 200 | 20 180 . Destroy 0b10 Robot/NC 15 | 5 10 . Destroy Leader 40 | . 40 . Successful Hack 25 | . 25 . Influence Decreases 275 | 12 263 . Time Decay 265 | 12 253 . Lost Part 10 | . 10 . Squads Dispatched 2 | . 2 . Investigation 1 | . 1 . Extermination . | . . . Reinforcement 1 | . 1 . Assault . | . . . Garrison . | . . . Intercept . | . . . Searches Triggered . | . . . Construction Impeded . | . . . Haulers Reinforced . | . . . Active Scanning Responses . | . . . Cargo Convoy Interrupts . | . . . Stealth | -11 -10 -10 --------- Run | Yrd Mat Min Distress Signals . | . . . Communications Jammed . | . . . Distress Signals . | . . . Times Spotted 21 | 2 17 2 Peak Tracking Total 4 | 2 4 2 Tactical Retreats . | . . . Traps | -11 -10 -10 ------- Run | Yrd Mat Min Traps Triggered 3 | . 3 . Indirectly . | . . . Trap Hack Attempts . | . . . Triggered . | . . . Disarmed . | . . . Reprogrammed . | . . . Reused . | . . . Traps Extracted . | . . . Installed . | . . . Triggered . | . . . Machines | -11 -10 -10 ---------- Run | Yrd Mat Min Machines Disabled . | . . . Max in Single Turn . | . . . Machines Repaired . | . . . Machines Dismantled . | . . . Machines Sabotaged . | . . . Overloaded Fab Kills . | . . . Hacking | -11 -10 -10 --------- Run | Yrd Mat Min Machines Accessed 6 | . 6 . Terminals 5 | . 5 . Fabricators . | . . . Repair Stations . | . . . Recycling Units 1 | . 1 . Scanalyzers . | . . . Garrison Access . | . . . Total Hacks 19 | . 19 . Successful 6 | . 6 . Failed 13 | . 13 . Catastrophic . | . . . Database Lockouts . | . . . Manual 12 | . 12 . Terminals 18 | . 18 . Fabricators . | . . . Repair Stations . | . . . Recycling Units 1 | . 1 . Scanalyzers . | . . . Garrison Access . | . . . Terminal Hacks 4 | . 4 . Part Schematic 1 | . 1 . Robot Analysis 2 | . 2 . Prototype ID Bank 1 | . 1 . Fabricator Hacks . | . . . Repair Station Hacks . | . . . Recycling Unit Hacks 1 | . 1 . Report Inventory 1 | . 1 . Scanalyzer . | . . . Garrison Access Hacks . | . . . Unauthorized Hacks 1 | . 1 . Terminals 1 | . 1 . Botnet 1 | . 1 . Fabricators . | . . . Repair Stations . | . . . Recycling Units . | . . . Scanalyzers . | . . . Garrison Access . | . . . Data Cores Recovered . | . . . Used . | . . . Hacking Detections 6 | . 6 . Full Trace Events 1 | . 1 . Feedback Events . | . . . Feedback Blocked . | . . . Robot Schematics Acquired . | . . . Robots Built . | . . . Authchips . | . . . Time . | . . . Total Robot Build Rating . | . . . Part Schematics Acquired 1 | . 1 . Parts Built . | . . . Authchips . | . . . Time . | . . . Total Part Build Rating . | . . . Parts Repaired . | . . . Time . | . . . Parts Recycled . | . . . Recycled Matter . | . . . Retrieved Matter . | . . . Retrieved Components . | . . . Parts Scanalyzed . | . . . Part Schematics Acquired . | . . . Parts Damaged . | . . . Bothacking | -11 -10 -10 ------------ Run | Yrd Mat Min Used RIF Installer . | . . . Robots Hacked . | . . . Non-combat . | . . . Combat . | . . . Robot Hacks Applied . | . . . Relay Couplers Released . | . . . Fabnet Peak Effective % . | . . . Robots Rewired . | . . . Allies Hacked . | . . . Hacks Repelled . | . . . Allies | -11 -10 -10 -------- Run | Yrd Mat Min Total Allies . | . . . Largest Group . | . . . Highest-Rated Group . | . . . Highest-Rated Ally . | . . . Total Orders . | . . . Ally Attacks . | . . . Total Damage . | . . . Kills . | . . . Allies Corrupted . | . . . Allies Melted . | . . . Intel | -11 -10 -10 ------- Run | Yrd Mat Min Active Infowar (turns) 3515 | 3458 57 . Terrain 3515 | 3458 57 . Robot Analysis Total 2 | . 2 . Derelict Logs Recovered . | . . . Drone Launches . | . . . Drone Recoveries . | . . . Exploration | -11 -10 -10 ------------- Run | Yrd Mat Min Turns Passed 4499 | 3507 901 91 Spaces Moved 626 | 163 416 47 Core 2 | 2 . . Treads 261 | 81 180 . Legs . | . . . Wheels 363 | 80 236 47 Hover . | . . . Flight . | . . . Fastest Speed 50 | 50 110 115 Average Speed 150 | 125 164 115 Slowest Speed 240 | 160 240 115 Overloaded Moves . | . . . Propulsion Burnouts . | . . . Robots Hopped . | . . . Cave-ins Triggered . | . . . Exploration Rate (%) 29 | 19 53 17 Regions Visited 2 Branch Regions 1 Pre-discovered Areas . | . . . Known Exits Taken . | . . . Unknown Exits Taken 2 | 1 1 . Scrap Searched . | . . . Spaces Dug . | . . . Terrain Destroyed . | . . . Melee . | . . . Projectile . | . . . AOE . | . . . Terrain Rammed . | . . . Walls Destroyed . | . . . Machines Disabled . | . . . Actions | -11 -10 -10 --------- Run | Yrd Mat Min Total 4089 | 3448 561 80 Wait 3357 | 3262 66 29 Move 624 | 162 415 47 Hop . | . . . Pick Up 20 | 6 14 . Fast Attach 15 | 7 8 . Attach 7 | 1 5 1 Detach . | . . . Swap 6 | 2 4 . Drop 2 | . 2 . Fire 58 | 8 47 3 Melee . | . . . Ram . | . . . Kick . | . . . Crush . | . . . Escape Stasis . | . . . Rewire . | . . . Trap . | . . . Miscellaneous . | . . . Route ------- -11/Scrapyard -10/Materials (discovered 3 exits: [*Mat x2] / [*Min]) -10/Mines History --------- Turn | Location | Event 33 | -11/Scrapyard | Discovered new exit (range 14) 3218 | -11/Scrapyard | Assembled infested the area 3405 | -11/Scrapyard | Lost 4 parts (1p1n2w) 3508 | -11/Scrapyard | Entered Materials 3509 | -10/Materials | Build established: Mutant 3638 | -10/Materials | Core integrity fell below 50% 3767 | -10/Materials | Discovered new exit (range 12) 3893 | -10/Materials | Discovered new exit (range 11) 4380 | -10/Materials | Discovered new exit (range 16) 4409 | -10/Materials | Entered Mines 4433 | -10/Mines | Assembled infested the area 4497 | -10/Mines | Core integrity fell below 20% 4500 | -10/Mines | Destroyed by D-53 Grenadier with Mini Grenade Launcher Last Messages --------------- Imp. Assault Rifle Imp. Flight Unit 04393_ Dropped Med. Laser. 04394_ Acquired Seismic Detector. 04403_ K-01 Serf cleans the Machine. LOCATION=UNKNOWN GOAL=ESCAPE 04410_ K-01 Serf collects debris. 04414_ K-01 Serf cleans the Pulverizer. 04418_ K-01 Serf collects debris. 04421_ K-01 Serf cleans the Pulverizer. 04433_ ALERT: Infestation in the mines, dispatching Demolisher response squad. 04464_ K-01 Serf collects debris. 04494_ Lgt. Ion Engine destroyed. 04496_ K-01 Serf collects debris. 04498_ The unstable cave ceiling collapses. 04499_ D-53 Grenadier suffers critical hit (Destroy). 04500_ K-01 Serf collects debris. 04500_ Com. Wheel destroyed. Map ----- +----------------------------------------------------+ | | | | | | | | | ?????????????????????????????????????????????????? | | ?????????????????????????????????????????????????? | | ?????????????????????????????????????????????????? | | ?????????????????????????????????????????????????? | | ?????????????????????????????????????????????????? | | ?????????????????????????????????????????????????? | | ?????????????????????????????????????????????????? | | ?????????????????????????????????????????????????? | | ?????????????????????????????????????????????????? | | ???????????????????????????????????????########### | | ???????????????????????????????????????# | | ???????????????????????????????????????# | | ????????????????????????????????????#### """" "" | | ????????????????????????????????????# """" "" | | ????????????????????????????????????# ## """" "" | | ????????????????????????????????????# ## | | ??????????????????????######????????# ## """" "" | | ?????????????????????## ########## ## """" "" | | ????????????????????## ## """" "" | | ????????????????????# ########## | | ????????????????????# #?????????# | | ????????????????????# @ #?????????########### | | ????????????????????# #??????????????????? | | ????????????????????# #??????????????????? | | ???????????????????# ##??????????????????? | | ?????????????????? # ##???????????????????? | | ???????????????? k #####????????????????????? | | ?????????????? d #?????????????????????????? | | ????????????? ??????????????????????????? | | ????????????? # ??????????????????????????? | | ????????????? t ### < ??????????????????????????? | | ?????????????? ???#; ???????????????????????????? | | ?????????????? ????###???????????????????????????? | | ?????????????????????????????????????????????????? | | ?????????????????????????????????????????????????? | | ?????????????????????????????????????????????????? | | ?????????????????????????????????????????????????? | | ?????????????????????????????????????????????????? | | ?????????????????????????????????????????????????? | | ?????????????????????????????????????????????????? | | ?????????????????????????????????????????????????? | | ?????????????????????????????????????????????????? | | ?????????????????????????????????????????????????? | | ?????????????????????????????????????????????????? | | ?????????????????????????????????????????????????? | | ?????????????????????????????????????????????????? | +----------------------------------------------------+ Best States ------------- Heat Dissipation 25 Energy Generation 10 Energy Capacity 250 Matter Stores 300 Matter Capacity 300 Sight Range 16 Terrain Scan Range 16 Terrain Scan Density 10 Core Shielding 20 Evasion (%) 42 Recoil Reduction 1 Item Schematics ----------------- Hcp. Storage Unit | -10/Materials | Hacked Robot Schematics ------------------ None Fabricated ------------ Nothing Repaired ---------- Nothing Alien Tech Used ----------------- None Achievements -------------- None Challenges ------------ None Game ------ Seed ResetSkeletonObliterator Manual? 0 Play Time 00:11:11 Cumulative 564.6 hours Start 2024.11.17 @ 17:16:19 End 2024.11.17 @ 17:27:38 Sessions 1 Manual Loads 0 Difficulty Rogue Special Mode None Game No. 222 Rogue 217 Adventurer 4 Explorer 1 Win Type - Total 9 Types 6/1/0/1/0/1/0/0/0 Lore% 90 Gallery% 92 Achievement% 87 Wizard Run 0 Options --------- Layout 0 ASCII 0 Keyboard 0 Movement Numpad Keybinds 0 Fullscreen 2 Font 18/CogNarrow Map View 76x50 Zoom Use 0% Tactical HUD 1 Map Filters NONE Filters NONE Steam 1 RUN: c3903d7b-7857-4ea7-8d60-d8d05aca4119